fUSD/lending_fUSD_20240715
["ID","MTS","AMOUNT","RATE_DAILY","PERIOD"]
[332203509,1721033446300,-500.0,0.00013863,2]
[332203511,1721033446310,-500.0,0.00013863,2]
[332203513,1721033446319,-512.74,0.00013863,2]
[332203515,1721033446329,-500.0,0.00013863,2]
[332203517,1721033446341,-575.93119512,0.00013863,2]
[332203519,1721033446351,-500.0,0.00013863,2]
[332203521,1721033446362,-500.0,0.00013863,2]
[332203523,1721033446372,-500.0,0.00013863,2]
[332203525,1721033446382,-500.0,0.00013863,2]
[332203527,1721033446392,-500.0,0.00013863,2]
[332203529,1721033446402,-500.0,0.00013863,2]
[332203531,1721033446412,-500.0,0.00013863,2]
[332203533,1721033446422,-500.0,0.00013863,2]
[332203535,1721033446432,-500.0,0.00013863,2]
[332203536,1721033446441,-500.0,0.00013863,2]
[332203538,1721033446451,-500.0,0.00013863,2]
[332203540,1721033446461,-169.54903344,0.00013863,2]
[332203542,1721033446470,-500.0,0.00013863,2]
[332203544,1721033446480,-1323.03,0.00013863,2]
[332203554,1721033446562,-2619.68,0.00013863,2]
[332203556,1721033446572,-807.56,0.00013863,2]
[332203558,1721033446584,-500.0,0.00013863,2]
[332203559,1721033446593,-500.0,0.00013863,2]
[332203562,1721033446603,-500.0,0.00013863,2]
[332203564,1721033446614,-975.25,0.00013863,2]
[332203565,1721033446623,-500.0,0.00013863,2]
[332203567,1721033446633,-500.0,0.00013863,2]
[332203569,1721033446642,-500.0,0.00013863,2]
[332203571,1721033446656,-500.0,0.00013863,2]
[332203573,1721033446667,-500.0,0.00013863,2]
[332203575,1721033446676,-500.0,0.00013863,2]
[332203577,1721033446685,-500.0,0.00013863,2]
[332203579,1721033446694,-500.0,0.00013863,2]
[332203581,1721033446704,-500.0,0.00013863,2]
[332203583,1721033446714,-490.18041584,0.00013863,2]
[332203585,1721033446723,-286.68798667,0.00013863,2]
[332203587,1721033446735,-300.84174167,0.00013863,2]
[332203589,1721033446744,-300.0,0.00013865,2]
[332203591,1721033446754,-150.0,0.00013873,2]
[332203593,1721033446764,-3000.0,0.0001388,2]
[332203595,1721033446773,-150.0,0.00013881,2]
[332203597,1721033446783,-280.509159,0.00013892,2]
[332203598,1721033446792,-150.0,0.00013896,2]
[332203600,1721033446802,-164.740525,0.00013898,2]
[332203602,1721033446812,-500.0,0.00013899,2]
[332203604,1721033446821,-197.271,0.000139,2]
[332203606,1721033446831,-150.25,0.000139,2]
[332203608,1721033446843,-161.913,0.000139,2]
[332203610,1721033446853,-170.948,0.000139,2]
[332203612,1721033446863,-246.896,0.000139,2]
[332203614,1721033446872,-150.466,0.000139,2]
[332203616,1721033446882,-203.128,0.000139,2]
[332203618,1721033446891,-206.254,0.000139,2]
[332203620,1721033446901,-245.474,0.000139,2]
[332203622,1721033446911,-169.407,0.000139,2]
[332203624,1721033446920,-151.0,0.000139,2]
[332203626,1721033446930,-151.0,0.000139,2]
[332203628,1721033446939,-151.0,0.000139,2]
[332203629,1721033446949,-151.0,0.000139,2]
[332203631,1721033446958,-151.0,0.000139,2]
[332203633,1721033446968,-151.0,0.000139,2]
[332203635,1721033446977,-176.614922,0.000139,2]
[332203637,1721033446987,-555.25852243,0.000139,2]
[332203639,1721033446998,-2862.860987,0.000139,2]
[332203641,1721033447010,-2862.860987,0.000139,2]
[332203643,1721033447020,-151.0,0.000139,2]
[332203645,1721033447029,-151.0,0.000139,2]
[332203647,1721033447038,-151.0,0.000139,2]
[332203649,1721033447047,-151.0,0.000139,2]
[332203650,1721033447056,-179.910644,0.000139,2]
[332203652,1721033447065,-151.0,0.000139,2]
[332203654,1721033447074,-151.0,0.000139,2]
[332203656,1721033447084,-151.0,0.000139,2]
[332203658,1721033447094,-151.0,0.000139,2]
[332203660,1721033447103,-151.0,0.000139,2]
[332203662,1721033447113,-151.0,0.000139,2]
[332203664,1721033447122,-156.21689,0.000139,2]
[332203665,1721033447131,-405.0025,0.000139,2]
[332203667,1721033447140,-405.0025,0.000139,2]
[332203669,1721033447149,-2273.83960642,0.000139,2]
[332203671,1721033447159,-832.78822034,0.000139,2]
[332203673,1721033447168,-317.27011793,0.000139,2]
[332203674,1721033447177,-2035.37618072,0.000139,2]
[332203676,1721033447186,-315.05861646,0.000139,2]
[332203678,1721033447197,-150.0,0.00013909,2]
[332203680,1721033447206,-150.0,0.00013912,2]
[332203682,1721033447215,-500.0,0.00013917,2]
[332203684,1721033447224,-500.0,0.00013917,2]
[332203686,1721033447233,-620.28,0.00013917,2]
[332203688,1721033447242,-500.0,0.00013917,2]
[332203690,1721033447251,-1125.25,0.00013917,2]
[332203692,1721033447261,-1666.74,0.00013917,2]
[332203694,1721033447270,-500.0,0.00013917,2]
[332203696,1721033447279,-533.55747754,0.00013917,2]
[332203698,1721033447288,-1771.27,0.00013917,2]
[332203700,1721033447297,-990.11,0.00013917,2]
[332203701,1721033447306,-500.0,0.00013917,2]
[332203703,1721033447316,-500.0,0.00013917,2]
[332203705,1721033447326,-500.0,0.00013917,2]
[332203707,1721033447335,-312.15,0.00013917,2]
[332203709,1721033447344,-500.0,0.00013917,2]
[332203711,1721033447354,-500.0,0.00013917,2]
[332203713,1721033447363,-512.74,0.00013917,2]
[332203715,1721033447373,-500.0,0.00013917,2]
[332203717,1721033447382,-500.0,0.00013917,2]
[332203719,1721033447391,-500.0,0.00013917,2]
[332203721,1721033447400,-500.0,0.00013917,2]
[332203723,1721033447410,-500.0,0.00013917,2]
[332203725,1721033447419,-500.0,0.00013917,2]
[332203727,1721033447428,-500.0,0.00013917,2]
[332203729,1721033447437,-300.91208312,0.00013917,2]
[332203731,1721033447447,-500.0,0.00013917,2]
[332203733,1721033447456,-273.52510264,0.00013917,2]
[332203735,1721033447466,-500.0,0.00013917,2]
[332203737,1721033447475,-500.0,0.00013917,2]
[332203739,1721033447484,-500.0,0.00013917,2]
[332203741,1721033447494,-1323.03,0.00013917,2]
[332203743,1721033447504,-2619.68,0.00013917,2]
[332203745,1721033447513,-807.56,0.00013917,2]
[332203747,1721033447522,-500.0,0.00013917,2]
[332203749,1721033447532,-500.0,0.00013917,2]
[332203751,1721033447541,-500.0,0.00013917,2]
[332203752,1721033447550,-975.25,0.00013917,2]
[332203754,1721033447560,-500.0,0.00013917,2]
[332203756,1721033447569,-500.0,0.00013917,2]
[332203758,1721033447578,-293.53616292,0.00013917,2]
[332203760,1721033447589,-238.94971251,0.00013917,2]
[332203762,1721033447598,-500.0,0.00013917,2]
[332203764,1721033447607,-170.5,0.00013917,2]
[332203766,1721033447617,-500.0,0.00013917,2]
[332203768,1721033447626,-500.0,0.00013917,2]
[332203770,1721033447636,-150.0,0.00013923,2]
[332203772,1721033447646,-1257.94804402,0.00013926,2]
[332203774,1721033447658,-150.0,0.0001393,2]
[332203776,1721033447668,-150.0,0.00013932,2]
[332203778,1721033447678,-150.0,0.00013951,2]
[332203780,1721033447687,-202.10974161,0.00013953,2]
[332203782,1721033447697,-150.0,0.00013954,2]
[332203784,1721033447707,-150.0,0.00013958,2]
[332203786,1721033447716,-150.13413,0.00013965,2]
[332203788,1721033447726,-200.0,0.00013965,2]
[332203790,1721033447736,-200.0,0.00013965,2]
[332203791,1721033447745,-298.7669187,0.00013965,2]
[332203793,1721033447754,-158.6259124,0.00013965,2]
[332203795,1721033447764,-160.143072,0.00013965,2]
[332203797,1721033447773,-158.1412836,0.00013965,2]
[332203799,1721033447782,-150.0,0.00013967,2]
[332203801,1721033447792,-150.0,0.00013968,2]
[332203803,1721033447801,-150.0,0.0001397,2]
[332203805,1721033447811,-500.0,0.00013972,2]
[332203807,1721033447821,-500.0,0.00013972,2]
[332203809,1721033447831,-620.28,0.00013972,2]
[332203811,1721033447842,-500.0,0.00013972,2]
[332203813,1721033447852,-1125.25,0.00013972,2]
[332203815,1721033447861,-1666.74,0.00013972,2]
[332203817,1721033447870,-500.0,0.00013972,2]
[332203819,1721033447881,-1771.27,0.00013972,2]
[332203821,1721033447890,-990.11,0.00013972,2]
[332203823,1721033447900,-500.0,0.00013972,2]
[332203825,1721033447909,-500.0,0.00013972,2]
[332203827,1721033447919,-500.0,0.00013972,2]
[332203829,1721033447929,-500.0,0.00013972,2]
[332203831,1721033447938,-500.0,0.00013972,2]
[332203833,1721033447947,-512.74,0.00013972,2]
[332203835,1721033447957,-500.0,0.00013972,2]
[332203837,1721033447967,-500.0,0.00013972,2]
[332203839,1721033447976,-476.5524943,0.00013972,2]
[332203841,1721033447985,-500.0,0.00013972,2]
[332203842,1721033447995,-500.0,0.00013972,2]
[332203844,1721033448004,-500.0,0.00013972,2]
[332203846,1721033448014,-500.0,0.00013972,2]
[332203848,1721033448023,-500.0,0.00013972,2]
[332203850,1721033448033,-500.0,0.00013972,2]
[332203851,1721033448043,-500.0,0.00013972,2]
[332203852,1721033448053,-500.0,0.00013972,2]
[332203853,1721033448062,-1323.03,0.00013972,2]
[332203854,1721033448072,-2619.68,0.00013972,2]
[332203855,1721033448081,-807.56,0.00013972,2]
[332203856,1721033448092,-257.29,0.00013972,2]
[332203857,1721033448102,-500.0,0.00013972,2]
[332203858,1721033448112,-500.0,0.00013972,2]
[332203859,1721033448121,-975.25,0.00013972,2]
[332203860,1721033448131,-500.0,0.00013972,2]
[332203861,1721033448140,-500.0,0.00013972,2]
[332203863,1721033448150,-500.0,0.00013972,2]
[332203865,1721033448159,-500.0,0.00013972,2]
[332203867,1721033448169,-500.0,0.00013972,2]
[332203869,1721033448179,-755.0,0.00013973,2]
[332203871,1721033448188,-1000.0,0.00013973,5]
[332203872,1721033448198,-150.0,0.00013973,2]
[332203874,1721033448208,-150.0,0.00013976,2]
[332203876,1721033448217,-150.0,0.00013981,2]
[332203878,1721033448228,-150.0,0.00013987,2]
[332203880,1721033448238,-239.86078995,0.00013989,2]
[332203882,1721033448248,-244.45088324,0.00013989,2]
[332203884,1721033448258,-500.0,0.00013989,2]
[332203886,1721033448267,-2251.80545675,0.0001399,2]
[332203888,1721033448276,-151.0,0.0001399,2]
[332203890,1721033448286,-186.90961,0.0001399,2]
[332203892,1721033448295,-152.766751,0.0001399,2]
[332203894,1721033448304,-231.816694,0.0001399,2]
[332203896,1721033448314,-253.40569,0.0001399,2]
[332203898,1721033448323,-253.40569,0.0001399,2]
[332203900,1721033448333,-151.0,0.0001399,2]
[332203902,1721033448343,-151.0,0.0001399,2]
[332203904,1721033448353,-151.0,0.0001399,2]
[332203906,1721033448362,-151.0,0.0001399,2]
[332203908,1721033448371,-151.0,0.0001399,2]
[332203910,1721033448381,-151.0,0.0001399,2]
[332203912,1721033448390,-1310.3377526,0.0001399,2]
[332203914,1721033448399,-1672.8536534,0.0001399,2]
[332203915,1721033448409,-2035.3695542,0.0001399,2]
[332203918,1721033448420,-6575.1249113,0.0001399,2]
[332203920,1721033448430,-8394.1882216,0.0001399,2]
[332203922,1721033448440,-10213.2515319,0.0001399,2]
[332203923,1721033448449,-160.841257,0.0001399,2]
[332203925,1721033448459,-176.614922,0.0001399,2]
[332203927,1721033448468,-2862.860987,0.0001399,2]
[332203929,1721033448478,-2862.860987,0.0001399,2]
[332203931,1721033448487,-151.0,0.0001399,2]
[332203933,1721033448497,-151.0,0.0001399,2]
[332203935,1721033448507,-151.0,0.0001399,2]
[332203937,1721033448516,-151.0,0.0001399,2]
[332203939,1721033448526,-297.011954,0.0001399,2]
[332203941,1721033448536,-151.0,0.0001399,2]
[332203943,1721033448546,-151.0,0.0001399,2]
[332203945,1721033448555,-151.0,0.0001399,2]
[332203947,1721033448565,-151.0,0.0001399,2]
[332203949,1721033448575,-29304.9461792,0.0001399,2]
[332203951,1721033448584,-36901.0174459,0.0001399,2]
[332203953,1721033448595,-44497.0887126,0.0001399,2]
[332203955,1721033448604,-151.0,0.0001399,2]
[332203957,1721033448613,-405.0025,0.0001399,2]
[332203959,1721033448623,-405.0025,0.0001399,2]
[332203961,1721033448632,-151.0,0.0001399,2]
[332203962,1721033448642,-3964.651229,0.0001399,2]
[332203964,1721033448655,-3964.651229,0.0001399,2]
[332203966,1721033448664,-194.151927,0.0001399,2]
[332203968,1721033448674,-194.151927,0.0001399,2]
[332203970,1721033448683,-194.26415949,0.0001399,2]
[332203972,1721033448694,-151.0,0.0001399,2]
[332203974,1721033448703,-151.0,0.0001399,2]
[332203976,1721033448713,-151.0,0.0001399,2]
[332203978,1721033448723,-82482.8782698,0.00013991,7]
[332203980,1721033448734,-8286.2981979,0.00013991,7]
[332203982,1721033448744,-940.71420426,0.00013991,7]
[332203984,1721033448754,-152.820587,0.00013991,2]
[332203986,1721033448763,-151.0,0.00013991,2]
[332203988,1721033448773,-174.547924,0.00013991,2]
[332203990,1721033448783,-253.40569,0.00013991,2]
[332203992,1721033448793,-253.40569,0.00013991,2]
[332203994,1721033448802,-151.0,0.00013991,2]
[332203996,1721033448811,-151.0,0.00013991,2]
[332203998,1721033448821,-151.0,0.00013991,2]
[332204000,1721033448831,-151.0,0.00013991,2]
[332204002,1721033448841,-151.0,0.00013991,2]
[332204004,1721033448850,-151.0,0.00013991,2]
[332204006,1721033448860,-151.0,0.00013991,2]
[332204008,1721033448869,-3964.651229,0.00013991,2]
[332204010,1721033448879,-3964.651229,0.00013991,2]
[332204012,1721033448888,-194.151927,0.00013991,2]
[332204014,1721033448897,-194.151927,0.00013991,2]
[332204016,1721033448907,-151.0,0.00013991,2]
[332204017,1721033448916,-151.0,0.00013991,2]
[332204020,1721033448926,-229.603418,0.00013991,2]
[332204022,1721033448936,-3524.0,0.00013991,2]
[332204024,1721033448946,-150.0,0.00013992,2]
[332204026,1721033448956,-150.0,0.00013994,2]
[332204028,1721033448967,-150.0,0.00013994,2]
[332204030,1721033448977,-150.0,0.00013997,2]
[332204032,1721033448987,-1315.6748526,0.00013997,2]
[332204034,1721033448996,-749.52622277,0.00013998,2]
[332204036,1721033449006,-167.31096151,0.00013998,2]
[332204038,1721033449015,-1928.011916,0.00013998,2]
[332204040,1721033449025,-2892.017874,0.00013998,2]
[332204042,1721033449035,-3856.023832,0.00013998,2]
[332204044,1721033449044,-4820.02979,0.00013998,2]
[332204046,1721033449053,-6748.041707,0.00013998,2]
[332204048,1721033449062,-7712.047665,0.00013998,2]
[332204050,1721033449072,-580.82,0.00013999,2]
[332204052,1721033449082,-3030.02587802,0.00013999,2]
[332204054,1721033449092,-150.0,0.00013999,2]
[332204056,1721033449102,-3030.02587802,0.00013999,2]
[332204058,1721033449111,-500.0,0.00013999,2]
[332204060,1721033449120,-197381.54200053,0.00014,2]
[332204062,1721033449130,-49035.70473336,0.00014,2]
[332204088,1721033449369,-351821.29895254,0.00014,2]
[332204090,1721033449381,-412.79312663,0.00014,2]
[332204092,1721033449392,-2838.32758398,0.00014,2]
[332204094,1721033449403,-118130.37484465,0.00014,2]
[332204096,1721033449415,-41006.78592447,0.00014,2]
[332204099,1721033449435,-500.0,0.00013999,2]
[332204101,1721033449445,-810.0,0.00014,2]
[332204103,1721033449456,-15122.16734889,0.00014,2]
[332204105,1721033449467,-3862.00569029,0.00014,2]
[332204108,1721033449479,-10651.93547108,0.00014,2]
[332204127,1721033449678,-356.0,0.000135,2]
[332204130,1721033449688,-500.0,0.00013698,2]
[332204132,1721033449698,-500.0,0.00013698,2]
[332204134,1721033449708,-496.66649378,0.00013698,2]
[332204136,1721033449718,-500.0,0.00013698,2]
[332204138,1721033449728,-163.777,0.0001375,2]
[332204140,1721033449738,-364.21315895,0.00013753,2]
[332204142,1721033449749,-48.64684105,0.00013753,2]
[332204144,1721033449759,-232.13497663,0.00013753,2]
[332204146,1721033449769,-500.0,0.00013753,2]
[332204148,1721033449778,-500.0,0.00013808,2]
[332204151,1721033449788,-454.14065263,0.00013999,2]
[332204153,1721033449798,-115447.11697371,0.00014,2]
[332204190,1721033450141,-611.5851813,0.00013863,2]
[332204192,1721033450150,-1148.61032024,0.00014,2]
[332204194,1721033450162,-1500.0,0.00014,2]
[332204197,1721033450175,-352.75909744,0.00014,2]
[332204199,1721033450186,-5803.876796,0.00014,2]
[332204203,1721033450208,-6906.00280481,0.00014,2]
[332204205,1721033450219,-162595.65462425,0.00014,2]
[332204241,1721033450553,-344.84664545,0.00010776,2]
[332204242,1721033450565,-270.2640105,0.00010776,2]
[332204243,1721033450575,-731.76064264,0.00010776,2]
[332204244,1721033450594,-70.41842321,0.00010776,2]
[332204245,1721033450604,-500.0,0.00013698,2]
[332204246,1721033450613,-503.32204992,0.00013698,2]
[332204247,1721033450622,-500.0,0.00013698,2]
[332204248,1721033450631,-500.0,0.00013698,2]
[332204249,1721033450640,-500.0,0.00013698,2]
[332204250,1721033450652,-190.924,0.0001375,2]
[332204252,1721033450661,-337.51,0.00013753,2]
[332204254,1721033450670,-500.0,0.00013753,2]
[332204256,1721033450679,-229.39,0.00013753,2]
[332204258,1721033450688,-531.25202196,0.00013808,2]
[332204260,1721033450698,-34987.07454442,0.00014,2]
[332204262,1721033450713,-3155.96995205,0.00014,2]
[332204264,1721033450724,-2986.3737,0.00014,2]
[332204267,1721033450742,-500.0,0.00013753,2]
[332204269,1721033450751,-31152.95532574,0.00014,2]
[332204288,1721033450922,-568.08960353,0.00013698,2]
[332204290,1721033450931,-500.0,0.00013698,2]
[332204292,1721033450940,-603.87,0.00013698,2]
[332204294,1721033450949,-151.315,0.0001375,2]
[332204296,1721033450959,-167.76741221,0.00013753,2]
[332204297,1721033450968,-621.23030947,0.00013808,2]
[332204298,1721033450977,-4270.64856375,0.00014,2]
[332204299,1721033450991,-933474.97490521,0.00014,2]
[332204301,1721033451002,-6320.5,0.00014,2]
[332206417,1721033551078,150.0,0.00022488,120]
[332206428,1721033790759,150.0,0.00026174,120]
[332206440,1721034179927,-1925.45103233,0.00011196,7]
[332206444,1721034311857,186.69,9.632e-05,2]
[332206445,1721034334300,647.48042413,9.632e-05,2]
[332206446,1721034335465,158.70478125,9.632e-05,2]
[332206447,1721034343332,15081.67376229,9.632e-05,2]
[332206448,1721034343355,2197.83218847,9.632e-05,2]
[332206449,1721034343726,348.94293618,9.632e-05,2]
[332206450,1721034345722,155.0,9.632e-05,2]
[332206451,1721034346823,1221.83381837,9.632e-05,2]
[332206452,1721034363222,155.0,9.632e-05,2]
[332206453,1721034365691,-158.96592151,0.00010498,2]
[332206454,1721034365715,-760.14,0.00010592,2]
[332206455,1721034365736,-573.5341,0.00010698,2]
[332206456,1721034365758,-300.0,0.00011195,2]
[332206457,1721034365780,-300.0,0.00011195,2]
[332206458,1721034365802,-300.03867542,0.00011196,2]
[332206459,1721034365824,-201.00830256,0.00011196,2]
[332206460,1721034365845,-2497.52279237,0.00011196,2]
[332206461,1721034365866,-155.0,0.00011197,2]
[332206462,1721034365893,-27522.91915507,0.00011199,2]
[332206463,1721034365915,-199.98285057,0.00011675,2]
[332206464,1721034365942,-1086.15423937,0.00011675,2]
[332206465,1721034369894,2497.52279237,0.00011098,2]
[332206466,1721034370695,155.31471181,0.00011675,2]
[332206467,1721034375154,308.6146599,0.00011675,2]
[332206468,1721034383965,158.70478125,0.00011675,2]
[332206469,1721034387125,173.15774171,0.00011995,2]
[332206470,1721034393873,553.62317681,0.00011675,2]
[332206471,1721034402297,764.43,0.0001016,2]
[332206472,1721034440833,1604.78847042,0.0001016,2]
[332206473,1721034441308,647.48042413,0.00011675,2]
[332206474,1721034449253,1069.94736295,0.00011199,2]
[332206476,1721034457659,2976.02750347,0.0001016,2]
[332206477,1721034461841,1221.83381837,0.0001016,2]
[332206478,1721034474096,2559.97438918,0.0001016,2]
[332206479,1721034474842,1253.31413076,0.0001016,2]
[332206480,1721034474863,2000.0,0.0001016,2]
[332206481,1721034474886,500.0,0.0001016,2]
[332206482,1721034474907,27401.65203796,0.0001016,2]
[332206484,1721034489750,164.99515181,0.0001016,2]
[332206490,1721034513470,240.49906309,0.0001016,2]
[332206500,1721034563844,1221.83381837,0.0001016,2]
[332206511,1721034632925,-1883.25,0.00011196,7]
[332206521,1721034633037,-42.20103233,0.00011196,7]
[332206522,1721034633047,-1925.45103233,0.00011196,7]
[332206523,1721034633057,-209.03744674,0.00011199,2]
[332206524,1721034633070,-500.0,0.00012018,2]
[332206525,1721034633080,-200.0,0.00012037,2]
[332206526,1721034633089,-300.0,0.00012042,2]
[332206527,1721034633101,-250.0,0.00012043,2]
[332206528,1721034633111,-321.88,0.00012045,2]
[332206529,1721034633121,-171.57,0.00012053,2]
[332206530,1721034633130,-250.0,0.00012061,2]
[332206531,1721034633139,-173.1577417,0.00012062,2]
[332206532,1721034633148,-500.0,0.0001207,2]
[332206533,1721034633158,-1000.0,0.00012095,2]
[332206534,1721034633167,-2135.59,0.00012095,2]
[332206535,1721034633177,-3132.2535069,0.00012157,2]
[332206536,1721034633190,-289.3455407,0.00012157,2]
[332206537,1721034633206,-20468.4009524,0.00012157,2]
[332206538,1721034633216,-348.96907574,0.00012273,2]
[332206539,1721034633226,-445.85428887,0.00012302,2]
[332206540,1721034633235,-945.40770519,0.00012302,2]
[332206541,1721034633245,-544.148961,0.00012302,2]
[332206542,1721034633254,-150.0,0.00012314,2]
[332206543,1721034633264,-500.0,0.00012314,2]
[332206544,1721034633273,-1221.83381837,0.00012315,2]
[332206545,1721034633283,-164.85,0.00012317,2]
[332206546,1721034633292,-9999.99,0.00012317,2]
[332206547,1721034633302,-499.99,0.00012317,2]
[332206548,1721034633313,-164.85,0.00012338,2]
[332206549,1721034633322,-150.99,0.00012338,2]
[332206550,1721034633332,-164.85,0.00012358,2]
[332206551,1721034633341,-164.85,0.00012379,2]
[332206552,1721034633351,-764.43,0.00012423,2]
[332206553,1721034633361,-169.33,0.0001256,2]
[332206554,1721034633370,-150.0,0.000126,2]
[332206555,1721034633380,-253.2166,0.000128,2]
[332206556,1721034633390,-228.43,0.00012802,2]
[332206557,1721034633399,-1250.0,0.00013,2]
[332206558,1721034633409,-3457.4025025,0.00013128,3]
[332206559,1721034633419,-300.0,0.00013128,2]
[332206560,1721034633428,-526.9209072,0.00013128,2]
[332206561,1721034633438,-19936.0,0.00013211,2]
[332206562,1721034633448,-173.49,0.00013266,2]
[332206563,1721034633458,-255.0,0.00013398,2]
[332206564,1721034633468,-616.33184579,0.00013472,2]
[332206565,1721034633478,-616.33184579,0.00013472,2]
[332206566,1721034633487,-167.699342,0.00013498,2]
[332206567,1721034633497,-159.928024,0.00013498,2]
[332206568,1721034633507,-217.680113,0.00013498,2]
[332206569,1721034633517,-266.73419059,0.00013516,2]
[332206570,1721034633526,-205.1097415,0.00013543,2]
[332206571,1721034633536,-158.9659215,0.00013553,2]
[332206572,1721034633546,-171.57,0.0001356,2]
[332206573,1721034633557,-1000.0,0.00013598,2]
[332206574,1721034633570,-1100.4928,0.00013598,2]
[332206575,1721034633579,-3355.7269,0.00013598,2]
[332206576,1721034633588,-1860.323,0.00013598,2]
[332206577,1721034633598,-2450.376,0.00013598,2]
[332206578,1721034633608,-2500.0,0.00013598,2]
[332206579,1721034633617,-1072.0,0.000136,2]
[332206580,1721034633627,-1000.0,0.00013607,2]
[332206581,1721034633637,-155.21189049,0.00013652,2]
[332206582,1721034633647,-8186.1587,0.00013653,2]
[332206583,1721034633656,-1285.8761,0.00013653,2]
[332206584,1721034633666,-167.699342,0.00013667,2]
[332206585,1721034633676,-484.10391196,0.00013674,2]
[332206586,1721034633686,-155.21189044,0.00013687,2]
[332206587,1721034633695,-223.55252537,0.0001369,2]
[332206588,1721034633705,-207.60949414,0.00013698,2]
[332206589,1721034633714,-501.28045563,0.00013698,2]
[332206590,1721034633724,-500.0,0.00013698,2]
[332206591,1721034633734,-503.74379854,0.00013698,2]
[332206592,1721034633743,-503.02762176,0.00013698,2]
[332206593,1721034633753,-502.17247097,0.00013698,2]
[332206594,1721034633763,-504.06793015,0.00013698,2]
[332206595,1721034633772,-501.60100385,0.00013698,2]
[332206596,1721034633782,-502.47033282,0.00013698,2]
[332206597,1721034633791,-502.36141871,0.00013698,2]
[332206598,1721034633801,-501.25567998,0.00013698,2]
[332206599,1721034633812,-500.0,0.00013698,2]
[332206600,1721034633824,-501.7972022,0.00013698,2]
[332206601,1721034633834,-501.08531406,0.00013698,2]
[332206602,1721034633844,-501.07817389,0.00013698,2]
[332206603,1721034633854,-505.97740073,0.00013698,2]
[332206604,1721034633864,-501.03,0.00013698,2]
[332206605,1721034633873,-514.23381704,0.00013698,2]
[332206606,1721034633883,-500.0,0.00013698,2]
[332206607,1721034633892,-633.38081971,0.00013698,2]
[332206608,1721034633902,-500.0,0.00013698,2]
[332206609,1721034633912,-500.0,0.00013698,2]
[332206610,1721034633921,-201.08565239,0.00013698,2]
[332206611,1721034633931,-500.0,0.00013698,2]
[332206612,1721034633940,-508.94900263,0.00013698,2]
[332206613,1721034633950,-500.0,0.00013698,2]
[332206614,1721034633960,-500.0,0.00013698,2]
[332206615,1721034633970,-500.0,0.00013698,2]
[332206616,1721034633979,-500.0,0.00013698,2]
[332206617,1721034633989,-500.0,0.00013698,2]
[332206618,1721034633999,-516.51838311,0.00013698,2]
[332206619,1721034634008,-500.82275621,0.00013698,2]
[332206620,1721034634022,-501.74165502,0.00013698,2]
[332206621,1721034634032,-271.8743629,0.00013698,2]
[332206622,1721034634041,-501.67193483,0.00013698,2]
[332206623,1721034634051,-503.77287265,0.00013698,2]
[332206624,1721034634061,-501.99291544,0.00013698,2]
[332206625,1721034634073,-510.26774928,0.00013698,2]
[332206626,1721034634083,-501.65514883,0.00013698,2]
[332206627,1721034634093,-505.81344704,0.00013698,2]
[332206628,1721034634103,-503.41727556,0.00013698,2]
[332206629,1721034634112,-502.90529372,0.00013698,2]
[332206630,1721034634122,-367.42092998,0.00013698,2]
[332206631,1721034634131,-500.0,0.00013698,2]